[Event "Live Chess"]
[Site "Chess.com"]
[Date "2011.02.01"]
[Round "-"]
[White "alebits"]
[Black "hipposcottimus"]
[Result "0-1"]
[CurrentPosition "r4r2/pb4k1/2p3q1/1p4P1/4Pn1Q/1B6/PPP3PP/R4R1K w - -"]
[Timezone "UTC"]
[ECO "B01"]
[ECOUrl "https://www.chess.com/openings/Scandinavian-Defense-Mieses-Kotrc-Variation-3.Nc3-Qd8-4.Bc4"]
[UTCDate "2011.02.01"]
[UTCTime "07:43:58"]
[WhiteElo "1730"]
[BlackElo "1824"]
[TimeControl "60"]
[Termination "hipposcottimus won on time"]
[StartTime "07:43:58"]
[EndDate "2011.02.01"]
[EndTime "07:46:04"]
[Link "https://www.chess.com/game/live/93563239"]

1. e4 {[%clk 0:01:00]} 1... d5 {[%clk 0:01:00]} 2. exd5 {[%clk 0:00:57.8]} 2... Qxd5 {[%clk 0:00:59.7]} 3. Nc3 {[%clk 0:00:57.4]} 3... Qd8 {[%clk 0:00:59.5]} 4. Bc4 {[%clk 0:00:55.9]} 4... e5 {[%clk 0:00:59.1]} 5. Nge2 {[%clk 0:00:54.5]} 5... Nf6 {[%clk 0:00:58.7]} 6. O-O {[%clk 0:00:54]} 6... c6 {[%clk 0:00:58.2]} 7. d3 {[%clk 0:00:52.8]} 7... Nbd7 {[%clk 0:00:57.5]} 8. Bg5 {[%clk 0:00:52]} 8... b5 {[%clk 0:00:56.9]} 9. Bb3 {[%clk 0:00:49.6]} 9... Be7 {[%clk 0:00:55.2]} 10. Ne4 {[%clk 0:00:48.4]} 10... Nxe4 {[%clk 0:00:51.9]} 11. Bxe7 {[%clk 0:00:45.7]} 11... Qxe7 {[%clk 0:00:49.8]} 12. dxe4 {[%clk 0:00:45.1]} 12... Nf6 {[%clk 0:00:48.9]} 13. Kh1 {[%clk 0:00:44.2]} 13... O-O {[%clk 0:00:48.2]} 14. f3 {[%clk 0:00:41.4]} 14... Nd7 {[%clk 0:00:47.1]} 15. Ng3 {[%clk 0:00:40]} 15... Kh8 {[%clk 0:00:43.4]} 16. Nf5 {[%clk 0:00:38.6]} 16... Qf6 {[%clk 0:00:42]} 17. Qd2 {[%clk 0:00:37.6]} 17... g6 {[%clk 0:00:40.3]} 18. Nh6 {[%clk 0:00:36]} 18... Qg7 {[%clk 0:00:38.8]} 19. Ng4 {[%clk 0:00:31.5]} 19... f5 {[%clk 0:00:38.5]} 20. Ne3 {[%clk 0:00:27.7]} 20... f4 {[%clk 0:00:37.2]} 21. Ng4 {[%clk 0:00:25.6]} 21... h5 {[%clk 0:00:36.9]} 22. Nf2 {[%clk 0:00:24.3]} 22... Nf6 {[%clk 0:00:33.1]} 23. Qd6 {[%clk 0:00:23]} 23... Bb7 {[%clk 0:00:29]} 24. Qxe5 {[%clk 0:00:21.6]} 24... Rfe8 {[%clk 0:00:26.3]} 25. Qxf4 {[%clk 0:00:20.1]} 25... g5 {[%clk 0:00:24.4]} 26. Qf5 {[%clk 0:00:18.2]} 26... h4 {[%clk 0:00:21.4]} 27. Nh3 {[%clk 0:00:16]} 27... g4 {[%clk 0:00:20]} 28. fxg4 {[%clk 0:00:13.7]} 28... Rf8 {[%clk 0:00:19.4]} 29. g5 {[%clk 0:00:11.2]} 29... Nh5 {[%clk 0:00:15.9]} 30. Qg4 {[%clk 0:00:08.5]} 30... Qg6 {[%clk 0:00:14.4]} 31. Qxh4 {[%clk 0:00:04.3]} 31... Kg7 {[%clk 0:00:11.8]} 32. Nf4 {[%clk 0:00:00.2]} 32... Nxf4 {[%clk 0:00:10.4]} 0-1

[Event "Live Chess"]
[Site "Chess.com"]
[Date "2011.02.01"]
[Round "-"]
[White "hipposcottimus"]
[Black "alebits"]
[Result "1-0"]
[CurrentPosition "8/8/8/7p/2p1k2P/2K3P1/8/8 b - -"]
[Timezone "UTC"]
[ECO "B20"]
[ECOUrl "https://www.chess.com/openings/Sicilian-Defense"]
[UTCDate "2011.02.01"]
[UTCTime "07:41:25"]
[WhiteElo "1818"]
[BlackElo "1736"]
[TimeControl "60"]
[Termination "hipposcottimus won on time"]
[StartTime "07:41:25"]
[EndDate "2011.02.01"]
[EndTime "07:43:38"]
[Link "https://www.chess.com/game/live/93562738"]

1. e4 {[%clk 0:01:00]} 1... c5 {[%clk 0:01:00]} 2. Bb5 {[%clk 0:00:58.3]} 2... Nc6 {[%clk 0:00:59]} 3. Bxc6 {[%clk 0:00:57.7]} 3... bxc6 {[%clk 0:00:58.1]} 4. c4 {[%clk 0:00:57.5]} 4... d6 {[%clk 0:00:56.7]} 5. d3 {[%clk 0:00:57.3]} 5... Nf6 {[%clk 0:00:55.7]} 6. Bg5 {[%clk 0:00:57]} 6... g6 {[%clk 0:00:54.1]} 7. Bxf6 {[%clk 0:00:56.4]} 7... exf6 {[%clk 0:00:52.9]} 8. f4 {[%clk 0:00:56.2]} 8... Bg7 {[%clk 0:00:52.1]} 9. Nf3 {[%clk 0:00:55.9]} 9... O-O {[%clk 0:00:51.4]} 10. O-O {[%clk 0:00:55.4]} 10... Bg4 {[%clk 0:00:50.7]} 11. Nbd2 {[%clk 0:00:54.4]} 11... d5 {[%clk 0:00:49.9]} 12. Qe1 {[%clk 0:00:52.1]} 12... Re8 {[%clk 0:00:48.6]} 13. Qf2 {[%clk 0:00:50.2]} 13... dxe4 {[%clk 0:00:47.4]} 14. dxe4 {[%clk 0:00:49.4]} 14... h5 {[%clk 0:00:40.7]} 15. h3 {[%clk 0:00:48.2]} 15... Bd7 {[%clk 0:00:39.7]} 16. f5 {[%clk 0:00:47.2]} 16... gxf5 {[%clk 0:00:34.6]} 17. exf5 {[%clk 0:00:46.8]} 17... Bxf5 {[%clk 0:00:33.4]} 18. Nb3 {[%clk 0:00:44.4]} 18... Bg6 {[%clk 0:00:32.1]} 19. Nh4 {[%clk 0:00:43.1]} 19... f5 {[%clk 0:00:30.6]} 20. Nxf5 {[%clk 0:00:40.6]} 20... Qg5 {[%clk 0:00:26.9]} 21. Nxg7 {[%clk 0:00:36.2]} 21... Kxg7 {[%clk 0:00:25.2]} 22. Nxc5 {[%clk 0:00:32.6]} 22... Qe3 {[%clk 0:00:19.6]} 23. Kh1 {[%clk 0:00:27.8]} 23... Qxf2 {[%clk 0:00:16.7]} 24. Rxf2 {[%clk 0:00:27.5]} 24... Rab8 {[%clk 0:00:15.7]} 25. b3 {[%clk 0:00:26.2]} 25... a5 {[%clk 0:00:14.6]} 26. Nd7 {[%clk 0:00:24.9]} 26... Rb7 {[%clk 0:00:12.5]} 27. Nc5 {[%clk 0:00:23]} 27... a4 {[%clk 0:00:11.7]} 28. Nxb7 {[%clk 0:00:21.3]} 28... axb3 {[%clk 0:00:11.3]} 29. axb3 {[%clk 0:00:20.9]} 29... Rb8 {[%clk 0:00:09.9]} 30. Nc5 {[%clk 0:00:20.7]} 30... Rxb3 {[%clk 0:00:09.3]} 31. Nxb3 {[%clk 0:00:17.6]} 31... Bd3 {[%clk 0:00:08.8]} 32. Rf3 {[%clk 0:00:15.9]} 32... Bxc4 {[%clk 0:00:08.1]} 33. Rf4 {[%clk 0:00:14.9]} 33... Bd5 {[%clk 0:00:07.4]} 34. Raf1 {[%clk 0:00:14]} 34... Bxb3 {[%clk 0:00:06.7]} 35. Rxf7+ {[%clk 0:00:12.5]} 35... Bxf7 {[%clk 0:00:05.6]} 36. Rxf7+ {[%clk 0:00:11.7]} 36... Kxf7 {[%clk 0:00:05]} 37. Kg1 {[%clk 0:00:11.4]} 37... Ke6 {[%clk 0:00:03.8]} 38. Kf2 {[%clk 0:00:11.1]} 38... Kd5 {[%clk 0:00:03.3]} 39. Ke2 {[%clk 0:00:10.8]} 39... c5 {[%clk 0:00:02.8]} 40. g3 {[%clk 0:00:10.6]} 40... Kd4 {[%clk 0:00:02.2]} 41. Kd2 {[%clk 0:00:10.3]} 41... c4 {[%clk 0:00:01.7]} 42. h4 {[%clk 0:00:09.6]} 42... Ke4 {[%clk 0:00:01.2]} 43. Kc3 {[%clk 0:00:07.9]} 1-0

[Event "Live Chess"]
[Site "Chess.com"]
[Date "2011.02.01"]
[Round "-"]
[White "alebits"]
[Black "hipposcottimus"]
[Result "1-0"]
[CurrentPosition "r2r4/p7/2P5/6Qk/2B2Bb1/8/PPP3PP/3R2K1 b - -"]
[Timezone "UTC"]
[ECO "C31"]
[ECOUrl "https://www.chess.com/openings/Kings-Gambit-Declined-Falkbeer-Countergambit-Accepted"]
[UTCDate "2011.02.01"]
[UTCTime "07:39:27"]
[WhiteElo "1742"]
[BlackElo "1812"]
[TimeControl "60"]
[Termination "alebits won by checkmate"]
[StartTime "07:39:27"]
[EndDate "2011.02.01"]
[EndTime "07:41:04"]
[Link "https://www.chess.com/game/live/93562387"]

1. e4 {[%clk 0:01:00]} 1... e5 {[%clk 0:01:00]} 2. f4 {[%clk 0:00:58.6]} 2... d5 {[%clk 0:00:59.7]} 3. exd5 {[%clk 0:00:56.5]} 3... Qxd5 {[%clk 0:00:59.2]} 4. Nc3 {[%clk 0:00:55.9]} 4... Qd6 {[%clk 0:00:55.4]} 5. Nf3 {[%clk 0:00:50.5]} 5... exf4 {[%clk 0:00:54.5]} 6. d4 {[%clk 0:00:48.5]} 6... Be7 {[%clk 0:00:52.8]} 7. Bc4 {[%clk 0:00:46]} 7... Nf6 {[%clk 0:00:51.2]} 8. O-O {[%clk 0:00:45.3]} 8... O-O {[%clk 0:00:49.8]} 9. Ne5 {[%clk 0:00:44.7]} 9... b5 {[%clk 0:00:48.3]} 10. Nxb5 {[%clk 0:00:41.8]} 10... c6 {[%clk 0:00:48]} 11. Nxd6 {[%clk 0:00:39.9]} 11... Bxd6 {[%clk 0:00:47.7]} 12. Bxf4 {[%clk 0:00:39.3]} 12... Ng4 {[%clk 0:00:44.5]} 13. Qf3 {[%clk 0:00:37.7]} 13... h6 {[%clk 0:00:42.1]} 14. Nxc6 {[%clk 0:00:35.9]} 14... Bb7 {[%clk 0:00:37.2]} 15. d5 {[%clk 0:00:31.9]} 15... Nxc6 {[%clk 0:00:34.2]} 16. dxc6 {[%clk 0:00:30]} 16... Bc8 {[%clk 0:00:33.9]} 17. Bxd6 {[%clk 0:00:28.3]} 17... Rd8 {[%clk 0:00:32.6]} 18. Rad1 {[%clk 0:00:26.2]} 18... Kh7 {[%clk 0:00:31.8]} 19. Qxf7 {[%clk 0:00:24.9]} 19... Nf6 {[%clk 0:00:26.5]} 20. Rxf6 {[%clk 0:00:21.8]} 20... Bg4 {[%clk 0:00:25.3]} 21. Rxh6+ {[%clk 0:00:20.3]} 21... Kxh6 {[%clk 0:00:24.2]} 22. Bf4+ {[%clk 0:00:17.6]} 22... g5 {[%clk 0:00:22.2]} 23. Qf6+ {[%clk 0:00:14.9]} 23... Kh5 {[%clk 0:00:21.9]} 24. Qxg5# {[%clk 0:00:12.9]} 1-0

[Event "Live Chess"]
[Site "Chess.com"]
[Date "2011.02.01"]
[Round "-"]
[White "hipposcottimus"]
[Black "alebits"]
[Result "1-0"]
[CurrentPosition "7r/pB4k1/3p2p1/2p1pb2/2Pb4/3P2P1/PP4RP/7K b - -"]
[Timezone "UTC"]
[ECO "B20"]
[ECOUrl "https://www.chess.com/openings/Sicilian-Defense-Staunton-Cochrane-Variation-2...Nc6"]
[UTCDate "2011.02.01"]
[UTCTime "07:37:11"]
[WhiteElo "1821"]
[BlackElo "1731"]
[TimeControl "60"]
[Termination "hipposcottimus won on time"]
[StartTime "07:37:11"]
[EndDate "2011.02.01"]
[EndTime "07:39:05"]
[Link "https://www.chess.com/game/live/93561858"]

1. e4 {[%clk 0:01:00]} 1... c5 {[%clk 0:01:00]} 2. c4 {[%clk 0:00:57.4]} 2... Nc6 {[%clk 0:00:59.2]} 3. d3 {[%clk 0:00:56.6]} 3... Nf6 {[%clk 0:00:58.7]} 4. Nc3 {[%clk 0:00:56.3]} 4... d6 {[%clk 0:00:58.2]} 5. f4 {[%clk 0:00:56]} 5... g6 {[%clk 0:00:57.3]} 6. Nf3 {[%clk 0:00:55.7]} 6... Bg7 {[%clk 0:00:56.5]} 7. e5 {[%clk 0:00:55.4]} 7... Nd7 {[%clk 0:00:52.6]} 8. e6 {[%clk 0:00:51.9]} 8... O-O {[%clk 0:00:47.7]} 9. exf7+ {[%clk 0:00:48.4]} 9... Rxf7 {[%clk 0:00:47.2]} 10. Be2 {[%clk 0:00:47.6]} 10... e6 {[%clk 0:00:46]} 11. O-O {[%clk 0:00:46.4]} 11... Nd4 {[%clk 0:00:44.2]} 12. Ng5 {[%clk 0:00:45.2]} 12... Rf8 {[%clk 0:00:39.4]} 13. Bg4 {[%clk 0:00:42.6]} 13... Nf6 {[%clk 0:00:37.4]} 14. Bh3 {[%clk 0:00:40.3]} 14... h6 {[%clk 0:00:35.5]} 15. Ne2 {[%clk 0:00:39.8]} 15... hxg5 {[%clk 0:00:33.2]} 16. fxg5 {[%clk 0:00:39.5]} 16... Nh5 {[%clk 0:00:29.8]} 17. Nxd4 {[%clk 0:00:38.7]} 17... Bxd4+ {[%clk 0:00:26.8]} 18. Kh1 {[%clk 0:00:37.1]} 18... Rxf1+ {[%clk 0:00:25.8]} 19. Qxf1 {[%clk 0:00:36.6]} 19... Qf8 {[%clk 0:00:25.2]} 20. Qd1 {[%clk 0:00:35.1]} 20... Nf4 {[%clk 0:00:19.3]} 21. Bg4 {[%clk 0:00:31.9]} 21... e5 {[%clk 0:00:16.9]} 22. Bf3 {[%clk 0:00:30.9]} 22... Be6 {[%clk 0:00:14.2]} 23. Bxf4 {[%clk 0:00:30.2]} 23... Qxf4 {[%clk 0:00:11.6]} 24. g3 {[%clk 0:00:29.9]} 24... Qxg5 {[%clk 0:00:10.5]} 25. Qe1 {[%clk 0:00:28.2]} 25... Kg7 {[%clk 0:00:09.1]} 26. Qe4 {[%clk 0:00:27.2]} 26... Rh8 {[%clk 0:00:07.6]} 27. Rg1 {[%clk 0:00:23.6]} 27... Qe3 {[%clk 0:00:04.7]} 28. Rg2 {[%clk 0:00:22.4]} 28... Qxe4 {[%clk 0:00:02.7]} 29. Bxe4 {[%clk 0:00:22.1]} 29... Bf5 {[%clk 0:00:00.8]} 30. Bxb7 {[%clk 0:00:20.3]} 1-0

[Event "Live Chess"]
[Site "Chess.com"]
[Date "2011.02.01"]
[Round "-"]
[White "alebits"]
[Black "hipposcottimus"]
[Result "1-0"]
[CurrentPosition "r1b3rk/p2n4/5p1Q/1pp4B/5P2/1PB5/2P3PP/2K3NR b - -"]
[Timezone "UTC"]
[ECO "C31"]
[ECOUrl "https://www.chess.com/openings/Kings-Gambit-Declined-Falkbeer-Accepted-Staunton-Charousek-Gambit"]
[UTCDate "2011.02.01"]
[UTCTime "07:34:42"]
[WhiteElo "1737"]
[BlackElo "1815"]
[TimeControl "60"]
[Termination "alebits won by checkmate"]
[StartTime "07:34:42"]
[EndDate "2011.02.01"]
[EndTime "07:36:26"]
[Link "https://www.chess.com/game/live/93561493"]

1. e4 {[%clk 0:01:00]} 1... e5 {[%clk 0:01:00]} 2. f4 {[%clk 0:00:58.4]} 2... d5 {[%clk 0:00:59.7]} 3. exd5 {[%clk 0:00:57.5]} 3... e4 {[%clk 0:00:59.2]} 4. d3 {[%clk 0:00:56.3]} 4... Qxd5 {[%clk 0:00:57.2]} 5. Nc3 {[%clk 0:00:55.7]} 5... Bb4 {[%clk 0:00:56.6]} 6. Bd2 {[%clk 0:00:55]} 6... Bxc3 {[%clk 0:00:56]} 7. Bxc3 {[%clk 0:00:54.4]} 7... exd3 {[%clk 0:00:55.5]} 8. Qxd3 {[%clk 0:00:52.7]} 8... Qe6+ {[%clk 0:00:53.4]} 9. Be2 {[%clk 0:00:51.3]} 9... Nf6 {[%clk 0:00:52.8]} 10. O-O-O {[%clk 0:00:50.5]} 10... O-O {[%clk 0:00:51.7]} 11. Bf3 {[%clk 0:00:47.3]} 11... c6 {[%clk 0:00:47.3]} 12. Re1 {[%clk 0:00:46]} 12... Qxa2 {[%clk 0:00:41]} 13. b3 {[%clk 0:00:43.2]} 13... Qa3+ {[%clk 0:00:39.4]} 14. Bb2 {[%clk 0:00:41.8]} 14... Qa5 {[%clk 0:00:36.8]} 15. Re5 {[%clk 0:00:37.7]} 15... b5 {[%clk 0:00:35.3]} 16. Rg5 {[%clk 0:00:35.2]} 16... h6 {[%clk 0:00:32]} 17. Rxg7+ {[%clk 0:00:32.8]} 17... Kxg7 {[%clk 0:00:31.3]} 18. Bh5 {[%clk 0:00:28.6]} 18... Kg8 {[%clk 0:00:26.2]} 19. Bxf6 {[%clk 0:00:25.8]} 19... Nd7 {[%clk 0:00:19.4]} 20. Bc3 {[%clk 0:00:24.2]} 20... f6 {[%clk 0:00:17.5]} 21. Bxa5 {[%clk 0:00:22]} 21... c5 {[%clk 0:00:13.5]} 22. Qg6+ {[%clk 0:00:20.9]} 22... Kh8 {[%clk 0:00:12.7]} 23. Bc3 {[%clk 0:00:18.7]} 23... Rg8 {[%clk 0:00:11.9]} 24. Qxh6# {[%clk 0:00:16.6]} 1-0

[Event "Live Chess"]
[Site "Chess.com"]
[Date "2011.02.01"]
[Round "-"]
[White "hipposcottimus"]
[Black "alebits"]
[Result "1-0"]
[CurrentPosition "3r2k1/7p/p5p1/5p2/4pP2/1Q1q2P1/P6P/7K b - -"]
[Timezone "UTC"]
[ECO "B20"]
[ECOUrl "https://www.chess.com/openings/Sicilian-Defense"]
[UTCDate "2011.02.01"]
[UTCTime "07:32:19"]
[WhiteElo "1824"]
[BlackElo "1726"]
[TimeControl "60"]
[Termination "hipposcottimus won on time"]
[StartTime "07:32:19"]
[EndDate "2011.02.01"]
[EndTime "07:34:22"]
[Link "https://www.chess.com/game/live/93560989"]

1. e4 {[%clk 0:01:00]} 1... c5 {[%clk 0:01:00]} 2. Bb5 {[%clk 0:00:58.7]} 2... a6 {[%clk 0:00:58.9]} 3. Be2 {[%clk 0:00:57.6]} 3... Nc6 {[%clk 0:00:57.4]} 4. c4 {[%clk 0:00:57.2]} 4... d6 {[%clk 0:00:56.5]} 5. d3 {[%clk 0:00:56.9]} 5... Nf6 {[%clk 0:00:55.9]} 6. Nf3 {[%clk 0:00:56.7]} 6... g6 {[%clk 0:00:54.9]} 7. O-O {[%clk 0:00:56.5]} 7... Bg7 {[%clk 0:00:54.3]} 8. Bf4 {[%clk 0:00:56]} 8... O-O {[%clk 0:00:53.4]} 9. e5 {[%clk 0:00:55.7]} 9... Bg4 {[%clk 0:00:52.1]} 10. exf6 {[%clk 0:00:53.5]} 10... Bxf6 {[%clk 0:00:50.2]} 11. Bg3 {[%clk 0:00:52.5]} 11... Bxb2 {[%clk 0:00:47.8]} 12. Nc3 {[%clk 0:00:44.7]} 12... Bxa1 {[%clk 0:00:46.3]} 13. Qxa1 {[%clk 0:00:44.3]} 13... Bxf3 {[%clk 0:00:42.6]} 14. Bxf3 {[%clk 0:00:44]} 14... Nd4 {[%clk 0:00:41.6]} 15. Qd1 {[%clk 0:00:41.6]} 15... Rb8 {[%clk 0:00:38.1]} 16. Bg4 {[%clk 0:00:39.1]} 16... e6 {[%clk 0:00:34.3]} 17. Bh3 {[%clk 0:00:38.7]} 17... f5 {[%clk 0:00:32.1]} 18. f3 {[%clk 0:00:36.2]} 18... Qf6 {[%clk 0:00:31]} 19. Bf2 {[%clk 0:00:35.2]} 19... b5 {[%clk 0:00:29.1]} 20. Ne2 {[%clk 0:00:34.8]} 20... Nxe2+ {[%clk 0:00:24.9]} 21. Qxe2 {[%clk 0:00:33.2]} 21... bxc4 {[%clk 0:00:24.4]} 22. dxc4 {[%clk 0:00:32.6]} 22... Rb2 {[%clk 0:00:21.7]} 23. Qe1 {[%clk 0:00:32.2]} 23... Rxf2 {[%clk 0:00:20.1]} 24. Rxf2 {[%clk 0:00:30.8]} 24... e5 {[%clk 0:00:19.3]} 25. Re2 {[%clk 0:00:29.9]} 25... Rd8 {[%clk 0:00:14.6]} 26. f4 {[%clk 0:00:28.8]} 26... e4 {[%clk 0:00:12.7]} 27. Re3 {[%clk 0:00:27.5]} 27... Qd4 {[%clk 0:00:11.7]} 28. Kh1 {[%clk 0:00:25.1]} 28... Qxc4 {[%clk 0:00:10.9]} 29. Re2 {[%clk 0:00:23.9]} 29... d5 {[%clk 0:00:10]} 30. g3 {[%clk 0:00:20]} 30... d4 {[%clk 0:00:08.7]} 31. Bf1 {[%clk 0:00:19.7]} 31... d3 {[%clk 0:00:07.6]} 32. Rd2 {[%clk 0:00:18.8]} 32... Qd4 {[%clk 0:00:06.8]} 33. Qd1 {[%clk 0:00:17.1]} 33... c4 {[%clk 0:00:06.3]} 34. Bxd3 {[%clk 0:00:15.8]} 34... cxd3 {[%clk 0:00:04.3]} 35. Rxd3 {[%clk 0:00:15.1]} 35... Qxd3 {[%clk 0:00:01.1]} 36. Qb3+ {[%clk 0:00:14.3]} 1-0

[Event "Live Chess"]
[Site "Chess.com"]
[Date "2011.02.01"]
[Round "-"]
[White "alebits"]
[Black "hipposcottimus"]
[Result "0-1"]
[CurrentPosition "k2r3r/ppp4p/2N1Qp2/8/8/2P5/q5PP/1R2KB1R w K -"]
[Timezone "UTC"]
[ECO "C31"]
[ECOUrl "https://www.chess.com/openings/Kings-Gambit-Declined-Falkbeer-Accepted-Staunton-Charousek-Gambit-4...Nf6-5.Nc3"]
[UTCDate "2011.02.01"]
[UTCTime "07:30:08"]
[WhiteElo "1732"]
[BlackElo "1818"]
[TimeControl "60"]
[Termination "hipposcottimus won on time"]
[StartTime "07:30:08"]
[EndDate "2011.02.01"]
[EndTime "07:31:59"]
[Link "https://www.chess.com/game/live/93560527"]

1. e4 {[%clk 0:01:00]} 1... e5 {[%clk 0:01:00]} 2. f4 {[%clk 0:00:58]} 2... d5 {[%clk 0:00:59.5]} 3. exd5 {[%clk 0:00:55.7]} 3... e4 {[%clk 0:00:58.8]} 4. Nc3 {[%clk 0:00:54.9]} 4... Nf6 {[%clk 0:00:58.2]} 5. d3 {[%clk 0:00:54.2]} 5... Bb4 {[%clk 0:00:55.4]} 6. Bd2 {[%clk 0:00:53.6]} 6... Bxc3 {[%clk 0:00:53.6]} 7. Bxc3 {[%clk 0:00:52.9]} 7... Qxd5 {[%clk 0:00:50.9]} 8. dxe4 {[%clk 0:00:44.1]} 8... Qxe4+ {[%clk 0:00:47.9]} 9. Ne2 {[%clk 0:00:37.5]} 9... Bg4 {[%clk 0:00:46.3]} 10. Bxf6 {[%clk 0:00:31.1]} 10... gxf6 {[%clk 0:00:45.2]} 11. Qd3 {[%clk 0:00:30.1]} 11... Qb4+ {[%clk 0:00:39.2]} 12. c3 {[%clk 0:00:25.8]} 12... Qxb2 {[%clk 0:00:38.3]} 13. Rb1 {[%clk 0:00:23.5]} 13... Qxa2 {[%clk 0:00:33.9]} 14. Qe4+ {[%clk 0:00:19.2]} 14... Be6 {[%clk 0:00:31.2]} 15. f5 {[%clk 0:00:17]} 15... Nc6 {[%clk 0:00:27.5]} 16. fxe6 {[%clk 0:00:16]} 16... O-O-O {[%clk 0:00:22.9]} 17. Nd4 {[%clk 0:00:08]} 17... fxe6 {[%clk 0:00:20.9]} 18. Qxe6+ {[%clk 0:00:04.5]} 18... Kb8 {[%clk 0:00:19.1]} 19. Nxc6+ {[%clk 0:00:03.3]} 19... Ka8 {[%clk 0:00:15.5]} 0-1

[Event "Live Chess"]
[Site "Chess.com"]
[Date "2011.02.01"]
[Round "-"]
[White "hipposcottimus"]
[Black "alebits"]
[Result "1-0"]
[CurrentPosition "8/1p4pk/2b4p/8/5B2/6PK/6r1/8 b - -"]
[Timezone "UTC"]
[ECO "B20"]
[ECOUrl "https://www.chess.com/openings/Sicilian-Defense-Bowdler-Attack-2...Nc6"]
[UTCDate "2011.02.01"]
[UTCTime "07:27:41"]
[WhiteElo "1812"]
[BlackElo "1738"]
[TimeControl "60"]
[Termination "hipposcottimus won on time"]
[StartTime "07:27:41"]
[EndDate "2011.02.01"]
[EndTime "07:29:48"]
[Link "https://www.chess.com/game/live/93559991"]

1. e4 {[%clk 0:01:00]} 1... c5 {[%clk 0:01:00]} 2. Bc4 {[%clk 0:00:57.4]} 2... Nc6 {[%clk 0:00:57.6]} 3. Nf3 {[%clk 0:00:56.6]} 3... d6 {[%clk 0:00:57.1]} 4. Ng5 {[%clk 0:00:55.1]} 4... Ne5 {[%clk 0:00:54.3]} 5. Qe2 {[%clk 0:00:50.1]} 5... h6 {[%clk 0:00:52.4]} 6. d4 {[%clk 0:00:48.7]} 6... Nxc4 {[%clk 0:00:50.2]} 7. Nxf7 {[%clk 0:00:48]} 7... Kxf7 {[%clk 0:00:48]} 8. Qxc4+ {[%clk 0:00:47.2]} 8... e6 {[%clk 0:00:47]} 9. f4 {[%clk 0:00:44.3]} 9... Nf6 {[%clk 0:00:43.5]} 10. d5 {[%clk 0:00:42.6]} 10... Be7 {[%clk 0:00:40.7]} 11. O-O {[%clk 0:00:37.9]} 11... Kg8 {[%clk 0:00:36.4]} 12. Nc3 {[%clk 0:00:37.5]} 12... e5 {[%clk 0:00:31.4]} 13. fxe5 {[%clk 0:00:36.1]} 13... dxe5 {[%clk 0:00:30.5]} 14. Be3 {[%clk 0:00:33.5]} 14... Bf8 {[%clk 0:00:26.6]} 15. Rad1 {[%clk 0:00:32.4]} 15... Bd7 {[%clk 0:00:23]} 16. d6+ {[%clk 0:00:29.4]} 16... Kh7 {[%clk 0:00:20.2]} 17. Qxc5 {[%clk 0:00:27.3]} 17... Rc8 {[%clk 0:00:17.6]} 18. Qxe5 {[%clk 0:00:26.4]} 18... Qe8 {[%clk 0:00:15.4]} 19. Qg3 {[%clk 0:00:24.2]} 19... Nxe4 {[%clk 0:00:13.4]} 20. Nxe4 {[%clk 0:00:22.2]} 20... Qxe4 {[%clk 0:00:12.9]} 21. Rf4 {[%clk 0:00:20.7]} 21... Qxc2 {[%clk 0:00:11.4]} 22. Rdf1 {[%clk 0:00:19.4]} 22... Bxd6 {[%clk 0:00:09.4]} 23. Rc1 {[%clk 0:00:12.5]} 23... Bxf4 {[%clk 0:00:07.8]} 24. Rxc2 {[%clk 0:00:11.7]} 24... Bxg3 {[%clk 0:00:06.1]} 25. Rxc8 {[%clk 0:00:09.8]} 25... Rxc8 {[%clk 0:00:05.2]} 26. hxg3 {[%clk 0:00:09.5]} 26... Rc2 {[%clk 0:00:04]} 27. Kh2 {[%clk 0:00:09.2]} 27... Rxb2 {[%clk 0:00:03.1]} 28. Bxa7 {[%clk 0:00:08.9]} 28... Rxa2 {[%clk 0:00:02.6]} 29. Be3 {[%clk 0:00:08.6]} 29... Bc6 {[%clk 0:00:01.6]} 30. Bf4 {[%clk 0:00:08.4]} 30... Rxg2+ {[%clk 0:00:00.6]} 31. Kh3 {[%clk 0:00:08.1]} 1-0

[Event "Live Chess"]
[Site "Chess.com"]
[Date "2011.02.01"]
[Round "-"]
[White "alebits"]
[Black "hipposcottimus"]
[Result "1/2-1/2"]
[CurrentPosition "r1b2rk1/p1p1nNpp/1pn5/5p2/2B2P2/2B5/PPP3PP/2KRR3 w - -"]
[Timezone "UTC"]
[ECO "C31"]
[ECOUrl "https://www.chess.com/openings/Kings-Gambit-Declined-Falkbeer-Accepted-Staunton-Charousek-Gambit"]
[UTCDate "2011.02.01"]
[UTCTime "07:25:48"]
[WhiteElo "1745"]
[BlackElo "1805"]
[TimeControl "60"]
[Termination "Game drawn by repetition"]
[StartTime "07:25:48"]
[EndDate "2011.02.01"]
[EndTime "07:27:17"]
[Link "https://www.chess.com/game/live/93559641"]

1. e4 {[%clk 0:01:00]} 1... e5 {[%clk 0:01:00]} 2. f4 {[%clk 0:00:57.6]} 2... d5 {[%clk 0:00:55]} 3. exd5 {[%clk 0:00:56.8]} 3... e4 {[%clk 0:00:54.4]} 4. d3 {[%clk 0:00:55]} 4... Qxd5 {[%clk 0:00:52.2]} 5. Nc3 {[%clk 0:00:51.4]} 5... Bb4 {[%clk 0:00:49.7]} 6. Bd2 {[%clk 0:00:50.8]} 6... Bxc3 {[%clk 0:00:48.4]} 7. Bxc3 {[%clk 0:00:50.2]} 7... f6 {[%clk 0:00:47.7]} 8. dxe4 {[%clk 0:00:47.4]} 8... Qxe4+ {[%clk 0:00:46.9]} 9. Qe2 {[%clk 0:00:46.9]} 9... Qxe2+ {[%clk 0:00:46]} 10. Bxe2 {[%clk 0:00:46.3]} 10... Ne7 {[%clk 0:00:45.7]} 11. O-O-O {[%clk 0:00:44.6]} 11... Nbc6 {[%clk 0:00:45.4]} 12. Nf3 {[%clk 0:00:36.9]} 12... O-O {[%clk 0:00:44.4]} 13. Bc4+ {[%clk 0:00:34.4]} 13... Kh8 {[%clk 0:00:42.8]} 14. Rhe1 {[%clk 0:00:33.9]} 14... f5 {[%clk 0:00:41.8]} 15. Ne5 {[%clk 0:00:30.5]} 15... b6 {[%clk 0:00:29.3]} 16. Nf7+ {[%clk 0:00:27.8]} 16... Kg8 {[%clk 0:00:27.5]} 17. Nh6+ {[%clk 0:00:17.6]} 17... Kh8 {[%clk 0:00:27.1]} 18. Nf7+ {[%clk 0:00:16.9]} 18... Kg8 {[%clk 0:00:26.6]} 19. Nh6+ {[%clk 0:00:16.4]} 19... Kh8 {[%clk 0:00:26.1]} 20. Nf7+ {[%clk 0:00:15.8]} 20... Kg8 {[%clk 0:00:25.7]} 1/2-1/2